fUSD/lending_fUSD_20240627
["ID","MTS","AMOUNT","RATE_DAILY","PERIOD"]
[330494520,1719509445310,-176476.48836306,0.00022989,2]
[330494521,1719509445321,-34280.47572248,0.00022989,2]
[330494532,1719509446652,-156.518619,0.000225,7]
[330494533,1719509446662,-156.518619,0.0002287,7]
[330494534,1719509446671,-156.518619,0.00022889,7]
[330494535,1719509446680,-156.518619,0.00022954,7]
[330494536,1719509446689,-156.518619,0.00022974,7]
[330494537,1719509446698,-32391.18774039,0.00022989,2]
[330494538,1719509446710,-339000.0,0.00022989,2]
[330494539,1719509446722,-1085.140985,0.00022989,2]
[330494540,1719509446854,-752.79796392,0.00022989,2]
[330494541,1719509446933,-57322.14951469,0.00022989,2]
[330494545,1719509447019,-1229.69159329,0.00022989,2]
[330494546,1719509447032,-1134.31999994,0.00022989,2]
[330494547,1719509447044,-912.45,0.00022989,2]
[330494548,1719509447056,-297.59077079,0.00022989,2]
[330494549,1719509447068,-332.64456287,0.00022989,2]
[330494550,1719509447082,-1365.5162,0.00022989,2]
[330494551,1719509447093,-426.79964853,0.00022989,2]
[330494552,1719509447104,-9017.23495912,0.00022989,2]
[330494553,1719509447116,-567.63859501,0.00022989,2]
[330494554,1719509447130,-7180.0,0.00022989,2]
[330494555,1719509447164,-3034.50388996,0.00022989,2]
[330494556,1719509447176,-506.363244,0.00022989,2]
[330494557,1719509447187,-85802.33122722,0.00022989,2]
[330494558,1719509447199,-672.03487054,0.00022989,2]
[330494559,1719509447213,-1488.95138755,0.00022989,2]
[330494560,1719509449253,-691.03903521,0.00013799,2]
[330494561,1719509449265,-49308.96096479,0.00013799,2]
[330494562,1719509449274,-156.518619,0.000225,7]
[330494563,1719509449283,-156.518619,0.0002287,7]
[330494564,1719509449293,-156.518619,0.00022889,7]
[330494565,1719509449303,-156.518619,0.00022954,7]
[330494566,1719509449312,-21374.14501164,0.00022989,2]
[330494567,1719509449323,-1346.35809449,0.00022989,2]
[330494568,1719509449334,-8027.63642451,0.00022989,2]
[330494569,1719509449458,-4731.15896742,0.00022989,2]
[330494570,1719509449469,-183063.59189043,0.00022989,2]
[330494571,1719509449480,-31566.9814534,0.00022989,2]
[330494572,1719509449493,-8389.38794388,0.00022989,2]
[330494573,1719509449504,-307.44854805,0.00022989,2]
[330494574,1719509449516,-1014.8698506,0.00022989,2]
[330494575,1719509449655,-156.518619,0.00022974,7]
[330494576,1719509449664,-804.8430908,0.00022989,2]
[330494577,1719509449678,-2401.02711241,0.00022989,2]
[330494578,1719509449691,-454.68489641,0.00022989,2]
[330494579,1719509449703,-1021.09735302,0.00022989,2]
[330494580,1719509449715,-600.62583817,0.00022989,2]
[330494581,1719509449726,-2061.92318497,0.00022989,2]
[330494582,1719509449739,-604.06833484,0.00022989,2]
[330494583,1719509449751,-1380.30322781,0.00022989,2]
[330494584,1719509449763,-507.02773193,0.00022989,2]
[330494585,1719509449774,-3877.46310139,0.00022989,2]
[330494586,1719509449787,-5681.06801467,0.00022989,2]
[330494587,1719509449799,-258.31960914,0.00022989,2]
[330494588,1719509449998,-433.48965719,0.00022989,2]
[330494589,1719509450010,-1494.82037085,0.00022989,2]
[330494590,1719509450022,-1710.75000075,0.00022989,2]
[330494591,1719509450034,-67759.94991996,0.00022989,2]
[330494592,1719509450045,-760.9013701,0.00022989,2]
[330494593,1719509450056,-453.46218221,0.00022989,2]
[330494594,1719509450068,-1542.7683886,0.00022989,2]
[330494595,1719509450081,-382.84633833,0.00022989,2]
[330494596,1719509450092,-25834.18550057,0.00022989,2]
[330494597,1719509450103,-536.415,0.00022989,2]
[330494599,1719509596885,1000.0,0.00024997,120]
[330494602,1719509860696,155.0,0.00011199,2]
[330494603,1719509926859,181.97803013,0.00011199,2]
[330494605,1719510377228,5380.72155244,0.00011199,2]
[330494609,1719510530115,1251.52373192,0.00011199,2]
[330494701,1719510632024,-443.73261381,0.00013873,2]
[330494702,1719510632035,-517.04978258,0.00013873,2]
[330494703,1719510632045,-112.02173569,0.000139,2]
[330494704,1719510632057,-1197.15677397,0.000139,2]
[330494711,1719510632194,-795.57001,0.000139,2]
[330494712,1719510632206,-645.54998034,0.000139,2]
[330494713,1719510632215,-150.0,0.00013973,2]
[330494714,1719510632225,-1265.22012514,0.00013999,2]
[330494715,1719510632234,-1539.22989452,0.00014,2]
[330494716,1719510632352,-3244.55441955,0.00014,2]
[330494717,1719510632364,-1195.81865627,0.00014,2]
[330494718,1719510632376,-1344.78568796,0.00014,2]
[330494719,1719510632387,-647.77,0.00014,2]
[330494720,1719510632400,-318649.82867086,0.00014,2]
[330494721,1719510632411,-254.68592052,0.00014,2]
[330494722,1719510632423,-850.40212826,0.00014,2]
[330494723,1719510632504,-1754.57731999,0.00014,2]
[330494725,1719510632517,-3905.00640642,0.00014,2]
[330494727,1719510632531,-1125.57304693,0.00014,2]
[330494729,1719510632542,-1087.70057797,0.00014,2]
[330494736,1719510637889,-150.67512119,0.000139,2]
[330494739,1719510637899,-481.95376779,0.00014,2]
[330494752,1719510638050,-1490.43650887,0.00014,2]
[330494753,1719510638062,-354.23051344,0.00014,2]
[330494754,1719510638074,-666.53,0.00014,2]
[330494755,1719510638086,-2891.60582704,0.00014,2]
[330494756,1719510638096,-19158.8834056,0.00014,2]
[330494757,1719510638203,-1664.7,0.00014,2]
[330494758,1719510638215,-300.001004,0.00014,2]
[330494760,1719510638226,-348.89532083,0.00014,2]
[330494762,1719510638238,-322.5152993,0.00014,2]
[330494764,1719510638251,-3880.96957075,0.00014,2]
[330494797,1719510640181,-257.0,0.00014,2]
[330494798,1719510640193,-781.93320104,0.00014,2]
[330494799,1719510640204,-19957.16458714,0.00014,2]
[330494800,1719510640216,-2454.94273917,0.00014,2]
[330494801,1719510640562,-872.99487217,0.00014,2]
[330494802,1719510640579,-164.42047238,0.000149,2]
[330494803,1719510640589,-315.32793766,0.00015,2]
[330494804,1719510640605,-262591.62267408,0.00015,2]
[330494805,1719510640615,-403.94,0.0001585,2]
[330494806,1719510640625,-164.42047234,0.00016898,2]
[330494807,1719510640635,-8665.05192547,0.0001726,2]
[330494808,1719510640644,-981.86,0.0001726,2]
[330494810,1719510640654,-499.99,0.00017534,2]
[330494812,1719510640666,-250.0,0.00017741,2]
[330494813,1719510640676,-2373.57182662,0.00017999,2]
[330494814,1719510640687,-2492.27739478,0.00017999,2]
[330494815,1719510640697,-152.45,0.00018037,2]
[330494816,1719510640707,-403.94,0.00018114,2]
[330494817,1719510640717,-250.0,0.00018196,2]
[330494818,1719510640727,-170.07,0.00018233,2]
[330494819,1719510640738,-600.0,0.00018299,2]
[330494820,1719510640749,-684.44148417,0.00018759,2]
[330494821,1719510640759,-1716.5707688,0.00018835,2]
[330494822,1719510640770,-388.42635038,0.00018864,2]
[330494823,1719510640779,-164.42047234,0.00018895,2]
[330494824,1719510640789,-155.0,0.00018899,2]
[330494825,1719510640799,-226.97665617,0.00018919,2]
[330494826,1719510640808,-226.97665617,0.00018919,2]
[330494827,1719510640818,-206.07168017,0.00018919,2]
[330494828,1719510640827,-155.0,0.00018999,2]
[330494829,1719510640837,-395.68670851,0.00019069,2]
[330494830,1719510640847,-625.33216649,0.00019299,2]
[330494831,1719510640857,-514.0,0.000193,4]
[330494832,1719510640866,-519.35662507,0.00019863,2]
[330494833,1719510640876,-175.24783084,0.00019899,2]
[330494834,1719510640886,-2003.84156611,0.00019997,2]
[330494835,1719510640896,-403.94,0.00020378,2]
[330494836,1719510640905,-600.0,0.00020587,2]
[330494837,1719510640916,-1150.4,0.000208,2]
[330494838,1719510640925,-212507.300862,0.000208,3]
[330494839,1719510640935,-150.0,0.00020861,2]
[330494840,1719510640944,-164.42047234,0.00020893,2]
[330494841,1719510640954,-300.0,0.000209,7]
[330494842,1719510640964,-46417.7237788,0.000209,3]
[330494843,1719510640973,-1250.0,0.00021,2]
[330494844,1719510640983,-202.785526,0.00021,2]
[330494845,1719510640992,-993.862165,0.000214,2]
[330494846,1719510641001,-179.85,0.00021469,2]
[330494847,1719510641011,-929.46,0.00021489,2]
[330494848,1719510641020,-176.19,0.00021644,2]
[330494849,1719510641030,-1013.0,0.000218,2]
[330494850,1719510641040,-161.79142469,0.00021891,2]
[330494851,1719510641049,-687.46,0.00021918,2]
[330494852,1719510641059,-170.38,0.00021918,2]
[330494853,1719510641068,-167.0,0.0002196,2]
[330494854,1719510641078,-2109.8965354,0.0002199,3]
[330494855,1719510641088,-741.11083987,0.00022,2]
[330494856,1719510641097,-700.0,0.00022,8]
[330494857,1719510641107,-155.73559578,0.0002204,2]
[330494858,1719510641116,-204.80702799,0.00022094,2]
[330494859,1719510641126,-1100.0,0.000221,8]
[330494860,1719510641136,-166.66666666,0.00022129,2]
[330494861,1719510641145,-267.42395276,0.00022163,2]
[330494862,1719510641155,-177.27583509,0.00022174,2]
[330494863,1719510641166,-1400.0,0.000222,8]
[330494864,1719510641176,-902.24583212,0.00022203,2]
[330494865,1719510641185,-159.50287503,0.00022211,2]
[330494866,1719510641195,-155.73559578,0.00022225,2]
[330494867,1719510641205,-3863.01070809,0.00022226,2]
[330494868,1719510641214,-445.76736021,0.00022255,2]
[330494869,1719510641223,-365.47794762,0.00022294,2]
[330494870,1719510641233,-1800.0,0.000223,8]
[330494871,1719510641243,-166.66666667,0.00022327,2]
[330494872,1719510641252,-156.26112917,0.00022345,2]
[330494873,1719510641261,-902.24583212,0.00022398,2]
[330494874,1719510641271,-300.0,0.000224,8]
[330494875,1719510641280,-154.32704987,0.00022424,2]
[330494876,1719510641290,-500.0,0.0002244,2]
[330494877,1719510641309,-500.0,0.0002244,2]
[330494878,1719510641321,-156.26112917,0.0002247,2]
[330494879,1719510641330,-229.96360769,0.00022499,2]
[330494880,1719510641340,-300.0,0.000225,8]
[330494881,1719510641350,-152.38752205,0.00022503,2]
[330494882,1719510641359,-2109.8965354,0.00022545,3]
[330494883,1719510641369,-156.26112917,0.00022546,2]
[330494884,1719510641379,-150.0,0.00022555,2]
[330494885,1719510641389,-150.0,0.00022555,2]
[330494886,1719510641399,-300.0,0.00022555,2]
[330494887,1719510641410,-300.39,0.00022555,2]
[330494888,1719510641420,-1061.47636328,0.000226,2]
[330494889,1719510641430,-300.0,0.000226,8]
[330494890,1719510641440,-1061.47636328,0.00022626,2]
[330494891,1719510641450,-159.50150164,0.00022634,2]
[330494892,1719510641460,-150.0,0.00022638,2]
[330494893,1719510641470,-403.94,0.00022642,2]
[330494894,1719510641480,-150.0,0.00022652,2]
[330494895,1719510641491,-1061.47636328,0.00022653,2]
[330494896,1719510641501,-150.0,0.00022661,2]
[330494897,1719510641511,-150.0,0.00022663,2]
[330494898,1719510641522,-1061.47636328,0.00022679,2]
[330494899,1719510641536,-4219.7930708,0.0002268,3]
[330494900,1719510641546,-150.0,0.00022685,2]
[330494901,1719510641556,-16879.1722832,0.0002269,3]
[330494902,1719510641567,-12584.20730786,0.0002269,2]
[330494903,1719510641576,-423.05438075,0.00022699,2]
[330494904,1719510641586,-515.1695448,0.00022699,2]
[330494905,1719510641595,-214.98616056,0.00022699,2]
[330494906,1719510641609,-250000.00000001,0.000227,2]
[330494907,1719510641618,-151.0,0.000227,7]
[330494908,1719510641629,-245.969776,0.000227,7]
[330494909,1719510641639,-151.0,0.000227,7]
[330494910,1719510641649,-245.969776,0.000227,7]
[330494911,1719510641660,-151.0,0.000227,7]
[330494912,1719510641670,-151.0,0.000227,7]
[330494913,1719510641680,-151.0,0.000227,7]
[330494914,1719510641690,-163.139126,0.000227,7]
[330494915,1719510641700,-151.0,0.000227,7]
[330494916,1719510641710,-163.139126,0.000227,7]
[330494917,1719510641720,-153.119028,0.000227,7]
[330494918,1719510641729,-151.0,0.000227,7]
[330494919,1719510641739,-151.0,0.000227,7]
[330494920,1719510641748,-229.807657,0.000227,7]
[330494921,1719510641758,-229.807657,0.000227,7]
[330494922,1719510641767,-151.0,0.000227,7]
[330494923,1719510641777,-151.0,0.000227,7]
[330494924,1719510641787,-169.108897,0.000227,7]
[330494925,1719510641797,-151.0,0.000227,7]
[330494926,1719510641807,-169.108897,0.000227,7]
[330494927,1719510641816,-462.28296,0.000227,7]
[330494928,1719510641825,-462.28296,0.000227,7]
[330494929,1719510641836,-151.0,0.000227,7]
[330494930,1719510641845,-350.0,0.000227,7]
[330494931,1719510641855,-350.0,0.000227,7]
[330494932,1719510641866,-151.0,0.000227,7]
[330494933,1719510641876,-151.0,0.000227,7]
[330494934,1719510641887,-151.0,0.000227,7]
[330494935,1719510641897,-151.0,0.000227,7]
[330494936,1719510641906,-151.0,0.000227,7]
[330494937,1719510641917,-151.0,0.000227,7]
[330494938,1719510641927,-301.352818,0.000227,7]
[330494939,1719510641937,-155.446084,0.000227,7]
[330494940,1719510641947,-155.446084,0.000227,7]
[330494941,1719510641958,-215.147724,0.000227,7]
[330494942,1719510641967,-215.147724,0.000227,7]
[330494943,1719510641977,-552.380989,0.000227,7]
[330494944,1719510641987,-552.380989,0.000227,7]
[330494945,1719510641998,-151.0,0.000227,7]
[330494946,1719510642007,-151.0,0.000227,7]
[330494947,1719510642018,-151.0,0.000227,7]
[330494948,1719510642028,-300.0,0.000227,8]
[330494949,1719510642039,-1061.47636328,0.00022705,2]
[330494950,1719510642048,-150.0,0.00022706,2]
[330494951,1719510642058,-242.56221717,0.00022714,2]
[330494952,1719510642068,-150.0,0.00022719,2]
[330494953,1719510642077,-150.0,0.00022722,2]
[330494954,1719510642087,-229.96360769,0.00022723,2]
[330494955,1719510642096,-1061.47636328,0.00022732,2]
[330494956,1719510642106,-1061.58445674,0.00022746,2]
[330494957,1719510642115,-150.0,0.00022754,2]
[330494958,1719510642125,-150.0,0.00022755,2]
[330494959,1719510642134,-1061.47636328,0.00022758,2]
[330494960,1719510642149,-242.56221717,0.00022759,2]
[330494961,1719510642161,-150.0,0.00022761,2]
[330494962,1719510642172,-161.09782061,0.00022762,2]
[330494963,1719510642182,-1061.47636328,0.00022785,2]
[330494964,1719510642193,-900.0,0.000228,8]
[330494965,1719510642204,-500.0,0.00022804,2]
[330494966,1719510642214,-1000.0,0.00022805,2]
[330494967,1719510642224,-500.0,0.00022805,2]
[330494968,1719510642235,-200.0,0.00022805,2]
[330494969,1719510642245,-1061.47636328,0.00022811,2]
[330494970,1719510642255,-150.0,0.00022836,2]
[330494971,1719510642265,-1061.47636328,0.00022837,2]
[330494972,1719510642275,-150.0,0.00022844,2]
[330494973,1719510642286,-1061.47636328,0.00022864,2]
[330494974,1719510642295,-552.6744775,0.00022864,2]
[330494975,1719510642305,-156.26112917,0.00022866,2]
[330494976,1719510642315,-600.0,0.00022874,2]
[330494977,1719510642325,-150.0,0.00022877,2]
[330494978,1719510642334,-150.0,0.00022883,2]
[330494979,1719510642344,-375.42469618,0.00022889,2]
[330494980,1719510642353,-5709.2728569,0.00022889,2]
[330494981,1719510642364,-5709.2728569,0.0002289,2]
[330494982,1719510642374,-1061.47636328,0.0002289,2]
[330494983,1719510642384,-5709.2728569,0.0002289,2]
[330494984,1719510642394,-164.42047234,0.0002289,2]
[330494985,1719510642405,-444.6593,0.0002289,2]
[330494986,1719510642415,-2000.0,0.000229,2]
[330494987,1719510642425,-702.0,0.000229,11]
[330494988,1719510642435,-191.0,0.000229,5]
[330494989,1719510642444,-325.0,0.000229,5]
[330494990,1719510642454,-150.0,0.00022901,2]
[330494991,1719510642464,-1013.0,0.0002291,2]
[330494992,1719510642474,-150.0,0.00022932,2]
[330494993,1719510642484,-301.54208166,0.00022941,2]
[330494994,1719510642497,-527.8894687,0.00022984,2]
[330494995,1719510642507,-2699.4569329,0.00022984,2]
[330494996,1719510642517,-277.1449401,0.00022984,2]
[330494997,1719510642530,-349.2392261,0.00022984,2]
[330494998,1719510642540,-628.4320832,0.00022984,2]
[330494999,1719510642551,-664.69660926,0.00022988,2]
[330495000,1719510642561,-99165.12196352,0.00022989,2]
[330495001,1719510642650,-45000.0,0.00022989,2]
[330495002,1719510642664,-858.39679138,0.00022989,2]
[330495003,1719510642677,-613.10258372,0.00022989,2]
[330495004,1719510642706,-466.51281727,0.00022989,2]
[330495005,1719510642718,-1594.4435325,0.00022989,2]
[330495006,1719510642735,-16021.6754248,0.00022989,2]
[330495007,1719510642748,-65607.70060002,0.00022989,2]
[330495008,1719510642760,-296687.20861451,0.00022989,2]
[330495021,1719510644361,-151.0,0.000227,7]
[330495022,1719510644372,-2223.87560059,0.00022989,2]
[330495023,1719510644384,-463.51367634,0.00022989,2]
[330495024,1719510644395,-748.63230573,0.00022989,2]
[330495025,1719510644490,-4058.8713,0.00022989,2]
[330495026,1719510644504,-48000.0,0.00022989,2]
[330495027,1719510644518,-715.36994382,0.00022989,2]
[330495028,1719510644599,-409.17503043,0.00022989,2]
[330495029,1719510644614,-650.36277005,0.00022989,2]
[330495030,1719510644627,-8999.06521188,0.00022989,2]
[330495031,1719510644639,-931.13278959,0.00022989,2]
[330495032,1719510645110,-4651.74154323,0.00022989,2]
[330495033,1719510645135,-3266.713069,0.00022989,2]
[330495034,1719510645147,-427.18428536,0.00022989,2]
[330495035,1719510645158,-537.88,0.00022989,2]
[330495036,1719510645170,-768.44720034,0.00022989,2]
[330495037,1719510645247,-1750.08934919,0.00022989,2]
[330495038,1719510645258,-746.60009089,0.00022989,2]
[330495039,1719510645269,-443.07349567,0.00022989,2]
[330495040,1719510645280,-9058.70789074,0.00022989,2]
[330495041,1719510645291,-564.89210802,0.00022989,2]
[330495042,1719510645302,-656.8979232,0.00022989,2]
[330495043,1719510645313,-341.65759013,0.00022989,2]
[330495044,1719510645324,-699.84660329,0.00022989,2]
[330495048,1719510647188,-150.67512119,0.00015184,2]
[330495049,1719510647197,-151.0,0.000227,7]
[330495050,1719510647206,-200.02860482,0.00022754,2]
[330495051,1719510647218,-62.11139518,0.00022754,2]
[330495052,1719510647228,-49846.10081768,0.00022989,2]
[330495053,1719510647239,-3885.10398628,0.00022989,2]
[330495054,1719510647269,-1562.11077063,0.00022989,2]
[330495055,1719510647280,-1240.18752,0.00022989,2]
[330495056,1719510647291,-646.11840695,0.00022989,2]
[330495057,1719510647303,-1000.54103258,0.00022989,2]
[330495058,1719510647315,-36077.63131791,0.00022989,2]
[330495059,1719510647326,-10576.96180597,0.00022989,2]
[330495060,1719510647337,-26905.9354371,0.00022989,2]
[330495061,1719510647349,-242735.82963664,0.00022989,2]
[330495062,1719510647360,-2671.07007893,0.00022989,2]
[330495063,1719510647379,-430.09096335,0.00022989,2]
[330495064,1719510647390,-6196.59169592,0.00022989,2]
[330495065,1719510647402,-6564.75721246,0.00022989,2]
[330495066,1719510647416,-894.62877208,0.00022989,2]
[330495067,1719510647427,-896.01,0.00022989,2]
[330495068,1719510647438,-500.0,0.00022989,2]
[330495069,1719510647449,-61839.82700624,0.00022989,2]
[330495070,1719510647460,-134000.0,0.00022989,2]
[330495071,1719510647471,-4391.4637408,0.00022989,2]
[330495072,1719510647482,-677.15259817,0.00022989,2]
[330495073,1719510647494,-774.96680305,0.00022989,2]
[330495074,1719510647506,-4592.15178615,0.00022989,2]
[330495085,1719510793618,200.0,0.00025283,120]
[330495086,1719510795659,1000.0,0.00025283,120]
[330495088,1719510923541,2212.15099067,0.00011199,2]
[330495090,1719510980889,8420.21223903,0.00011199,2]
[330495091,1719511046027,809.33170539,0.00011199,2]
[330495093,1719511092813,206.07168017,0.00011199,2]
[330495098,1719511295547,226.97665617,0.00011199,2]
[330495099,1719511453408,18042.99685864,0.00011199,2]
[330495100,1719511468430,18042.99685864,0.00011199,2]
[330495101,1719511532847,206.07168017,0.00011199,2]
[330495158,1719511789812,19611.10400098,0.00011199,2]
[330495168,1719511832329,-482.0,0.00012301,2]
[330495169,1719511832339,-226.97665617,0.00012314,2]
[330495170,1719511832348,-698.083211,0.00013061,2]
[330495171,1719511832358,-206.07168017,0.00013128,2]
[330495172,1719511832367,-206.07168017,0.00013128,2]
[330495173,1719511832376,-684.44148417,0.00015579,2]
[330495174,1719511832387,-2487.2417311,0.00017,2]
[330495175,1719511832396,-625.33216649,0.00017444,2]
[330495176,1719511832406,-154.77,0.00017566,2]
[330495177,1719511832415,-300.0,0.00017788,2]
[330495178,1719511832428,-348.27,0.00017789,2]
[330495179,1719511832437,-150.99,0.00017829,2]
[330495180,1719511832447,-150.99,0.00018759,2]
[330495181,1719511832457,-127.09929077,0.00018759,2]
[330495182,1719511832469,-782.57070923,0.00018759,2]
[330495183,1719511832479,-155.0,0.00018919,2]
[330495184,1719511832489,-155.0,0.00019069,2]
[330495185,1719511832499,-155.13544744,0.00019069,2]
[330495186,1719511832509,-2285.0,0.000195,4]
[330495187,1719511832518,-250.0,0.00019531,2]
[330495188,1719511832528,-152.45,0.0001991,2]
[330495189,1719511832537,-250.0,0.00019946,2]
[330495190,1719511832547,-179.85,0.0001999,2]
[330495191,1719511832556,-4042.41,0.00020041,2]
[330495192,1719511832565,-176.55,0.00020049,2]
[330495193,1719511832575,-348.27,0.00020053,2]
[330495194,1719511832584,-240.0,0.00020168,2]
[330495195,1719511832593,-250.0,0.00020217,2]
[330495196,1719511832603,-762.04,0.00020229,2]
[330495197,1719511832612,-1007.88,0.00020244,2]
[330495198,1719511832621,-6867.0911474,0.00020248,2]
[330495199,1719511832633,-1192.8949193,0.00020248,2]
[330495200,1719511832644,-976.69261047,0.00020248,2]
[330495201,1719511832681,-14853.32132283,0.00020248,2]
[330495202,1719511832690,-150.0,0.00020297,2]
[330495203,1719511832698,-500.0,0.00020477,2]
[330495204,1719511832708,-1718.27,0.00020628,2]
[330495205,1719511832717,-180.91,0.00020696,2]
[330495206,1719511832727,-169.9,0.00020779,2]
[330495207,1719511832736,-202.785526,0.00021,2]
[330495208,1719511832745,-438.3,0.00021644,2]
[330495209,1719511832754,-156.42,0.00021644,2]
[330495210,1719511832763,-1014.64,0.000218,2]
[330495211,1719511832772,-600.0,0.000219,7]
[330495212,1719511832781,-170.38,0.00021918,2]
[330495213,1719511832791,-572.88,0.00021918,2]
[330495214,1719511832800,-1300.0,0.00022,8]
[330495216,1719511832809,-349.45,0.00022065,3]
[330495217,1719511832819,-174.72,0.00022065,3]
[330495218,1719511832828,-1026.19830818,0.00022072,2]
[330495219,1719511832837,-112748.0,0.00022075,2]
[330495220,1719511832847,-3734.24368448,0.00022078,2]
[330495221,1719511832855,-2000.0,0.000221,8]
[330495222,1719511832865,-1416.2415485,0.00022177,2]
[330495223,1719511832875,-2600.0,0.000222,8]
[330495224,1719511832884,-258.509821,0.00022212,2]
[330495225,1719511832894,-1416.2415485,0.00022217,2]
[330495227,1719511832902,-245.48920403,0.00022217,2]
[330495229,1719511832914,-155.73559578,0.00022259,2]
[330495230,1719511832926,-245.48920401,0.00022292,2]
[330495232,1719511832939,-3300.0,0.000223,8]
[330495234,1719511832948,-348.27,0.00022317,2]
[330495236,1719511832958,-362.91053964,0.00022324,2]
[330495239,1719511832968,-534.25199492,0.00022339,2]
[330495240,1719511832979,-245.48920401,0.00022367,2]
[330495242,1719511832988,-600.0,0.000224,8]
[330495243,1719511832997,-245.48920401,0.00022441,2]
[330495244,1719511833006,-197.98012706,0.00022493,2]
[330495245,1719511833019,-600.0,0.000225,8]
[330495246,1719511833029,-1416.2415485,0.00022507,2]
[330495247,1719511833039,-150.0,0.00022516,2]
[330495248,1719511833048,-245.48920401,0.00022516,2]
[330495249,1719511833057,-305.67,0.00022525,2]
[330495250,1719511833066,-154.32704987,0.00022527,2]
[330495251,1719511833076,-186.01500711,0.00022587,2]
[330495252,1719511833086,-245.48920401,0.00022591,2]
[330495253,1719511833096,-600.0,0.000226,8]
[330495254,1719511833105,-150.99915608,0.00022614,2]
[330495255,1719511833116,-453.19752519,0.00022626,2]
[330495256,1719511833125,-197.98012706,0.00022633,2]
[330495257,1719511833135,-150.47367995,0.00022634,2]
[330495258,1719511833144,-1014.64,0.00022635,2]
[330495259,1719511833154,-245.48920401,0.00022666,2]
[330495260,1719511833164,-240.0,0.00022689,2]
[330495261,1719511833175,-1000.0,0.00022693,2]
[330495262,1719511833184,-1000.0,0.00022693,2]
[330495263,1719511833193,-1000.0,0.00022693,2]
[330495264,1719511833204,-1000.0,0.00022693,2]
[330495265,1719511833213,-1000.0,0.00022693,2]
[330495266,1719511833222,-1000.0,0.00022693,2]
[330495267,1719511833232,-1000.0,0.00022693,2]
[330495268,1719511833240,-1000.0,0.00022693,2]
[330495269,1719511833250,-1000.0,0.00022693,2]
[330495270,1719511833259,-1000.0,0.00022693,2]
[330495271,1719511833268,-1000.0,0.00022693,2]
[330495272,1719511833277,-1000.0,0.00022693,2]
[330495273,1719511833286,-1000.0,0.00022693,2]
[330495274,1719511833295,-1000.0,0.00022693,2]
[330495275,1719511833304,-1000.0,0.00022693,2]
[330495276,1719511833314,-1000.0,0.00022693,2]
[330495277,1719511833324,-1000.0,0.00022693,2]
[330495278,1719511833333,-1000.0,0.00022693,2]
[330495279,1719511833342,-1000.0,0.00022693,2]
[330495280,1719511833352,-1000.0,0.00022693,2]
[330495281,1719511833361,-1000.0,0.00022693,2]
[330495282,1719511833371,-1000.0,0.00022693,2]
[330495283,1719511833380,-1000.0,0.00022693,2]
[330495284,1719511833389,-1000.0,0.00022693,2]
[330495285,1719511833398,-1000.0,0.00022693,2]
[330495286,1719511833407,-1000.0,0.00022693,2]
[330495287,1719511833416,-1000.0,0.00022693,2]
[330495288,1719511833429,-1000.0,0.00022693,2]
[330495289,1719511833438,-1000.0,0.00022693,2]
[330495290,1719511833448,-1000.0,0.00022693,2]
[330495291,1719511833457,-1000.0,0.00022693,2]
[330495292,1719511833466,-1000.0,0.00022693,2]
[330495293,1719511833476,-1000.0,0.00022693,2]
[330495294,1719511833485,-600.0,0.000227,8]
[330495295,1719511833494,-163.60592626,0.00022723,2]
[330495296,1719511833503,-245.48920401,0.0002274,2]
[330495297,1719511833513,-197.98012706,0.00022747,2]
[330495298,1719511833523,-12469.00144837,0.0002276,2]
[330495299,1719511833532,-241.44139,0.0002276,2]
[330495300,1719511833541,-163.60592626,0.00022782,2]
[330495301,1719511833551,-1200.0,0.000228,8]
[330495302,1719511833560,-362.91053964,0.00022801,2]